fUST/lending_fUST_20260204
["ID","MTS","AMOUNT","RATE_DAILY","PERIOD"]
[404433994,1770137445209,-670.2050892,0.00013983,2]
[404433995,1770137445220,-500.0,0.00014122,2]
[404433996,1770137445229,-600.0,0.00014221,2]
[404433997,1770137445238,-628.10386206,0.00014235,2]
[404433998,1770137445250,-308.98989843,0.00014245,2]
[404433999,1770137445260,-500.0,0.00014246,2]
[404434000,1770137445271,-500.0,0.00014246,2]
[404434002,1770137445280,-1000.0,0.00014247,2]
[404434003,1770137445290,-1000.0,0.00014247,2]
[404434004,1770137445299,-1000.0,0.00014247,2]
[404434005,1770137445310,-1000.0,0.00014247,2]
[404434006,1770137445322,-573.08738432,0.00014247,2]
[404434007,1770137445331,-500.0,0.00014247,2]
[404434008,1770137445341,-1000.0,0.00014247,2]
[404434013,1770137445408,-1000.0,0.00014247,2]
[404434014,1770137445428,-709.65954322,0.00014247,2]
[404434015,1770137445438,-1000.0,0.00014247,2]
[404434017,1770137445449,-1000.0,0.00014247,2]
[404434018,1770137445458,-1000.0,0.00014247,2]
[404434019,1770137445467,-272.1243143,0.00014247,2]
[404434021,1770137445477,-582.69829927,0.00014268,2]
[404434023,1770137445486,-1568.69031794,0.00014268,2]
[404434025,1770137445495,-251.435,0.00014368,2]
[404434027,1770137445505,-2060.25876193,0.00014368,2]
[404434029,1770137445514,-393.10971598,0.00014368,2]
[404434031,1770137445523,-209.78150197,0.00014368,2]
[404434033,1770137445535,-268.43008753,0.00014368,2]
[404434035,1770137445545,-1500.0,0.00014368,2]
[404434037,1770137445554,-1500.0,0.00014368,2]
[404434039,1770137445563,-1500.0,0.00014368,2]
[404434041,1770137445572,-1436.69070988,0.00014368,2]
[404434042,1770137445583,-1500.0,0.00014368,2]
[404434043,1770137445592,-1500.0,0.00014368,2]
[404434045,1770137445603,-360.07435617,0.00014456,7]
[404434046,1770137445612,-260.89340585,0.00014456,7]
[404434047,1770137445621,-261.23095061,0.00014761,2]
[404434048,1770137445630,-250.0,0.00014792,2]
[404434049,1770137445639,-250.0,0.00014792,2]
[404434050,1770137445648,-500.0,0.00014792,2]
[404434051,1770137445657,-332.93810199,0.00014794,2]
[404434052,1770137445666,-500.0,0.00014795,2]
[404434053,1770137445674,-932.73005011,0.00014795,2]
[404434054,1770137445683,-1527.96138248,0.00014795,2]
[404434055,1770137445692,-333.29847338,0.00014795,2]
[404434056,1770137445702,-500.0,0.00014795,2]
[404434058,1770137445711,-1057.06742423,0.00014795,2]
[404434060,1770137445742,5000.0,0.00013686,2]
[404434063,1770137446371,-442.93257577,0.00014795,2]
[404434064,1770137446381,-568.16448388,0.00014795,2]
[404434087,1770137466892,500.0,0.00013273,2]
[404434118,1770137481700,500.0,0.00013699,2]
[404434194,1770137528289,500.0,0.00013273,2]
[404434195,1770137528343,1000.0,0.00013821,2]
[404434225,1770137537092,500.0,0.00013698,2]
[404434283,1770137600287,500.0,0.00013699,2]
[404434287,1770137614009,3557.92472778,0.00014237,2]
[404434344,1770137675663,231.00709515,0.00013696,2]
[404434345,1770137675815,500.0,0.00013696,2]
[404434346,1770137675847,500.0,0.00013696,2]
[404434347,1770137675927,500.0,0.00013696,2]
[404434348,1770137675954,500.0,0.00013696,2]
[404434349,1770137675979,194.18464386,0.00013696,2]
[404434350,1770137676015,500.0,0.00013696,2]
[404434351,1770137676047,500.0,0.00013696,2]
[404434352,1770137676115,500.0,0.00013696,2]
[404434353,1770137676152,16.89353321,0.00013696,2]
[404434354,1770137676176,483.10646679,0.00013696,2]
[404434355,1770137676247,500.0,0.00013696,2]
[404434356,1770137676316,500.0,0.00013696,2]
[404434357,1770137676346,500.0,0.00013696,2]
[404434358,1770137676376,500.0,0.00013696,2]
[404434359,1770137676402,500.0,0.00013696,2]
[404434360,1770137676431,500.0,0.00013696,2]
[404434361,1770137676459,500.0,0.00013696,2]
[404434362,1770137676486,500.0,0.00013696,2]
[404434363,1770137676512,500.0,0.00013696,2]
[404434364,1770137676538,557.94282582,0.00013696,2]
[404434365,1770137676574,500.0,0.00013696,2]
[404434366,1770137676606,500.0,0.00013696,2]
[404434367,1770137676637,500.0,0.00013696,2]
[404434368,1770137676666,500.0,0.00013696,2]
[404434369,1770137676695,500.0,0.00013696,2]
[404434370,1770137679827,1958.96070739,0.00014237,2]
[404434371,1770137679848,3041.03929261,0.00014237,2]
[404434377,1770137683244,484.84861749,0.00013696,2]
[404434384,1770137687702,5000.0,0.00014237,2]
[404434389,1770137690930,500.0,0.00013698,2]
[404434391,1770137704111,500.0,0.00013699,2]
[404434392,1770137706609,500.0,0.00013699,2]
[404434393,1770137707001,500.0,0.00013699,2]
[404434394,1770137708025,500.79279263,0.00013699,2]
[404434395,1770137709934,445.60473055,0.00013699,2]
[404434404,1770137711006,345.17342818,0.00013699,2]
[404434405,1770137711379,287.21402463,0.00013699,2]
[404434406,1770137714163,500.0,0.00013699,2]
[404434407,1770137714292,500.0,0.00013273,2]
[404434408,1770137714325,1000.0,0.00013821,2]
[404434409,1770137714744,500.0,0.00013699,2]
[404434410,1770137715445,500.0,0.00013699,2]
[404434414,1770137717582,556.02057263,0.00013699,2]
[404434415,1770137718043,500.33382077,0.00013273,2]
[404434416,1770137718116,500.0,0.00013699,2]
[404434417,1770137718483,500.0,0.00013699,2]
[404434418,1770137718520,500.0,0.00013273,2]
[404434419,1770137718577,795.30906235,0.00013821,2]
[404434420,1770137718765,500.0,0.00013699,2]
[404434421,1770137718838,500.0,0.00013273,2]
[404434422,1770137718892,1000.0,0.00013821,2]
[404434423,1770137719385,500.0,0.00013699,2]
[404434424,1770137719581,501.32176623,0.00013699,2]
[404434425,1770137720193,300.0,0.00013673,2]
[404434426,1770137720576,500.0,0.00013699,2]
[404434449,1770137767272,500.0,0.00013273,2]
[404434450,1770137770950,500.67926291,0.00013273,2]
[404434451,1770137771189,500.0,0.00013273,2]
[404434452,1770137776727,500.0,0.00013273,2]
[404434515,1770137823408,500.0,0.00013273,2]
[404434519,1770137823518,500.0,0.00013273,2]
[404434528,1770137824876,500.0,0.00013273,2]
[404434529,1770137827136,500.0,0.00013273,2]
[404434530,1770137827270,500.0,0.00013273,2]
[404434541,1770137835956,500.0,0.00013273,2]
[404434561,1770137840197,500.0,0.00013273,2]
[404434628,1770137886644,469.44485319,0.00013273,2]
[404434630,1770137886735,500.0,0.00013273,2]
[404434640,1770137895435,500.0,0.00013273,2]
[404434641,1770137899228,5000.0,0.00013673,2]
[404434686,1770137921939,3530.56514681,0.00013673,2]
[404434687,1770137921961,1469.43485319,0.00013673,2]
[404434709,1770137938309,5000.0,0.00013673,2]
[404434710,1770137943417,408.17142164,0.00013273,2]
[404434711,1770137946138,3122.40372517,0.00013673,2]
[404434712,1770137946166,1877.59627483,0.00013673,2]
[404434716,1770137947413,500.0,0.00013273,2]
[404434717,1770137947546,162.38059682,0.00013273,2]
[404434718,1770137947578,500.0,0.00013273,2]
[404434719,1770137947605,500.0,0.00013273,2]
[404434720,1770137947651,500.0,0.00013273,2]
[404434725,1770137947895,500.0,0.00013273,2]
[404434734,1770137953980,5000.0,0.00013673,2]
[404434745,1770137959316,460.03312835,0.00013,2]
[404434746,1770137959339,9531.37486875,0.00013,2]
[404434747,1770137959658,468.63513125,0.00013273,2]
[404434748,1770137959681,31.36486875,0.00013273,2]
[404434749,1770137961805,5000.0,0.00013673,2]
[404434750,1770137963448,500.0,0.00013273,2]
[404434761,1770137970039,4468.64513125,0.00013673,2]
[404434762,1770137970063,531.35486875,0.00013673,2]
[404434763,1770137978315,5000.0,0.00013673,2]
[404434765,1770137986968,3947.91953049,0.00013673,2]
[404434779,1770137995929,520.73560076,0.00013673,2]
[404434780,1770137995958,4479.26439924,0.00013673,2]
[404434790,1770138001286,-201.41043372,0.00013673,2]
[404434791,1770138001315,-300.0,0.00013673,2]
[404434792,1770138003595,5000.0,0.00013685,2]
[404434793,1770138005520,500.0,0.00013273,2]
[404434794,1770138005996,615.0,0.00013685,2]
[404434795,1770138006575,500.0,0.00013273,2]
[404434796,1770138011541,2382.18913256,0.00013685,2]
[404434797,1770138011563,2617.81086744,0.00013685,2]
[404434805,1770138017531,500.0,0.00013273,2]
[404434806,1770138019524,-252.0218151,0.00013685,2]
[404434807,1770138019553,-500.0,0.00013698,2]
[404434808,1770138019583,-500.0,0.00013698,2]
[404434809,1770138019612,-500.0,0.00013698,2]
[404434810,1770138019640,-300.0,0.00013698,2]
[404434811,1770138019669,-282.0,0.00013698,2]
[404434812,1770138019706,-300.0,0.00013698,2]
[404434813,1770138019739,-1200.0,0.00013698,2]
[404434814,1770138020063,2331.9663698,0.00013685,2]
[404434815,1770138020087,2668.0336302,0.00013685,2]
[404434816,1770138028390,5000.0,0.00013698,2]
[404434818,1770138037585,500.0,0.00013698,2]
[404434819,1770138043270,-268.18024339,0.00013699,2]
[404434820,1770138044120,5000.0,0.00013699,2]
[404434831,1770138052797,4500.01,0.00013699,2]
[404434832,1770138052822,499.99,0.00013699,2]
[404434843,1770138062162,703.4885997,0.00012963,2]
[404434844,1770138062189,6135.14958429,0.00013599,2]
[404434847,1770138063208,300.0,0.00013698,2]
[404434848,1770138067736,500.0,0.00013273,2]
[404434849,1770138068037,1861.38181601,0.00013699,2]
[404434850,1770138068068,3138.61818399,0.00013699,2]
[404434861,1770138076482,4356.74228526,0.00013699,2]
[404434862,1770138077514,500.0,0.00013273,2]
[404434863,1770138080011,500.0,0.00013273,2]
[404434864,1770138080339,300.0,0.00013673,2]
[404434865,1770138091963,500.0,0.00013698,2]
[404434866,1770138091992,500.0,0.00013698,2]
[404434867,1770138092020,204.64953075,0.00013698,2]
[404434868,1770138092041,295.35046925,0.00013698,2]
[404434869,1770138092068,228.5642797,0.00013698,2]
[404434870,1770138092106,500.0,0.00013698,2]
[404434871,1770138092138,500.0,0.00013698,2]
[404434872,1770138092167,278.60861025,0.00013698,2]
[404434873,1770138092199,500.0,0.00013698,2]
[404434874,1770138092229,500.0,0.00013698,2]
[404434875,1770138092275,621.02100104,0.00013698,2]
[404434876,1770138092310,500.0,0.00013698,2]
[404434877,1770138092344,500.0,0.00013698,2]
[404434878,1770138092373,377.40136233,0.00013698,2]
[404434879,1770138092417,500.0,0.00013698,2]
[404434880,1770138092448,500.0,0.00013698,2]
[404434881,1770138092478,4199.06427743,0.00013699,2]
[404434882,1770138092499,800.93572257,0.00013699,2]
[404434883,1770138092537,500.0,0.00013698,2]
[404434884,1770138092577,500.0,0.00013698,2]
[404434885,1770138092616,500.0,0.00013698,2]
[404434886,1770138092735,500.0,0.00013698,2]
[404434887,1770138092797,500.0,0.00013698,2]
[404434928,1770138098900,-250.79920887,0.00013699,2]
[404434985,1770138112224,-8432.76289854,0.00013699,2]
[404434986,1770138115224,5000.0,0.00013559,2]
[404435035,1770138136558,500.0,0.00013273,2]
[404435036,1770138137535,4500.01,0.00013689,2]
[404435037,1770138137558,499.99,0.00013689,2]
[404435065,1770138160078,5000.0,0.00013689,2]
[404435070,1770138182807,4500.02,0.00013689,2]
[404435071,1770138182833,499.98,0.00013689,2]
[404435072,1770138184171,500.0,0.00013273,2]
[404435073,1770138187625,500.0,0.00013273,2]
[404435074,1770138188595,500.0,0.00013273,2]
[404435075,1770138190083,500.0,0.00013273,2]
[404435076,1770138199252,500.0,0.00013273,2]
[404435077,1770138200974,500.0,0.00013273,2]
[404435078,1770138201517,300.0,0.00013673,2]
[404435079,1770138205998,5000.0,0.00013689,2]
[404435080,1770138213331,1200.03,0.00012963,2]
[404435081,1770138213353,10000.01,0.00012963,2]
[404435082,1770138213374,10000.01,0.00012963,2]
[404435083,1770138213397,10000.01,0.00012963,2]
[404435084,1770138213420,10000.01,0.00012963,2]
[404435085,1770138213446,13713.3301131,0.00012963,2]
[404435086,1770138228203,5000.0,0.00013559,2]
[404435087,1770138236279,4999.99,0.00013559,2]
[404435088,1770138249605,-500.0,0.00013698,2]
[404435089,1770138249628,-300.0,0.00013698,2]
[404435090,1770138249662,-90.0,0.00013699,2]
[404435091,1770138253990,500.0,0.00013273,2]
[404435092,1770138274995,2430.34,0.00012329,2]
[404435093,1770138280685,1148.91718281,0.00013559,2]
[404435094,1770138285754,920.76281719,0.00012329,2]
[404435095,1770138285780,1104.51718281,0.00012329,2]
[404435096,1770138296579,1687.73,0.00012329,2]
[404435097,1770138303290,500.0,0.00013273,2]
[404435098,1770138303540,500.0,0.00013273,2]
[404435099,1770138303632,500.0,0.00013273,2]
[404435100,1770138307336,1406.44,0.00012329,2]
[404435101,1770138311317,5000.0,0.00013588,2]
[404435102,1770138314656,150.0,0.00029494,120]
[404435103,1770138317752,1172.04,0.00012329,2]
[404435104,1770138318056,508.25672554,0.00013273,2]
[404435105,1770138319584,500.0,0.00013273,2]
[404435106,1770138326617,1413.27327446,0.00013588,2]
[404435107,1770138326646,3586.72672554,0.00013588,2]
[404435108,1770138328281,976.7,0.00012329,2]
[404435109,1770138334491,1215.47331309,0.00013588,2]
[404435111,1770138338817,813.91,0.00012329,2]
[404435112,1770138347847,150.0,0.00029875,120]
[404435113,1770138349148,3407.19996137,0.00013588,2]
[404435114,1770138349171,1592.80003863,0.00013588,2]
[404435115,1770138349246,678.26,0.00012329,2]
[404435117,1770138359961,678.26,0.00012329,2]
[404435118,1770138364004,500.0,0.00013273,2]
[404435119,1770138364032,500.15373621,0.00013273,2]
[404435120,1770138367507,500.0,0.00013273,2]
[404435121,1770138370450,452.18,0.00012329,2]
[404435122,1770138371136,5000.0,0.00013588,2]
[404435123,1770138377114,500.0,0.00013273,2]
[404435124,1770138380847,376.81,0.00012329,2]
[404435125,1770138392376,314.01,0.00012329,2]
[404435126,1770138393698,3357.01,0.00013588,2]
[404435127,1770138393721,494.07281719,0.00013588,2]
[404435128,1770138402976,261.68,0.00012329,2]
[404435129,1770138413526,218.06,0.00012329,2]
[404435142,1770138423979,181.72,0.00012329,2]
[404435143,1770138426603,500.71191812,0.00013273,2]
[404435154,1770138434526,151.43,0.00012329,2]
[404435175,1770138440622,500.0,0.00013273,2]
[404435182,1770138444993,757.19,0.00012329,2]
[404435186,1770138453418,5000.0,0.00013559,2]
[404435188,1770138461894,5000.0,0.00013559,2]
[404435189,1770138469974,641.07454406,0.00013559,2]
[404435190,1770138477791,5000.0,0.00013559,2]
[404435191,1770138483998,500.0,0.00013273,2]
[404435192,1770138484323,295.25,9.99e-05,2]
[404435193,1770138496223,500.0,0.00013273,2]
[404435195,1770138498713,300.0,0.00012745,2]
[404435196,1770138500011,5000.0,0.00013559,2]
[404435197,1770138508200,3142.79896638,0.00013563,2]
[404435198,1770138523177,5000.0,0.00013573,2]
[404435199,1770138531761,352.71846083,0.00013573,2]
[404435200,1770138543658,500.43221312,0.00013273,2]
[404435201,1770138543685,166.05567171,0.00013273,2]
[404435202,1770138543725,500.0,0.00013273,2]
[404435203,1770138543777,500.0,0.00013273,2]
[404435204,1770138544936,-263.25411444,0.00013573,2]
[404435205,1770138547100,5000.0,0.00013573,2]
[404435206,1770138547974,500.0,0.00013273,2]
[404435207,1770138548366,500.0,0.00013273,2]
[404435208,1770138548995,500.0,0.00013273,2]
[404435209,1770138560206,-4631.75411379,0.00013599,2]
[404435210,1770138560600,-736.50177242,0.00013599,2]
[404435211,1770138561203,500.0,0.00013273,2]
[404435213,1770138570293,5000.0,0.00013599,2]
[404435214,1770138593192,5000.0,0.00013673,2]
[404435217,1770138605221,502.41895084,0.00013273,2]
[404435218,1770138606707,500.0,0.00013273,2]
[404435219,1770138606734,500.0,0.00013273,2]
[404435220,1770138607332,500.0,0.00013273,2]
[404435221,1770138607366,500.0,0.00013273,2]
[404435222,1770138615348,2497.59104916,0.00013673,2]
[404435223,1770138615372,2502.40895084,0.00013673,2]
[404435224,1770138618617,500.0,0.00013273,2]
[404435225,1770138621950,-308.93572474,0.00013673,2]
[404435226,1770138621978,-615.0,0.00013673,2]
[404435251,1770138631785,-245.7832247,0.00013685,2]
[404435253,1770138631795,-59.8087753,0.00013698,2]
[404435255,1770138631808,-175.86022481,0.00013698,2]
[404435257,1770138631818,-300.0,0.00013698,2]
[404435258,1770138631827,-300.0,0.00013698,2]
[404435260,1770138631836,-1200.0,0.00013698,2]
[404435262,1770138631846,-2351.339397,0.00013699,2]
[404435264,1770138631856,-429.49797765,0.00013699,2]
[404435266,1770138631867,-332.93679327,0.00013699,2]
[404435354,1770138637905,-24685.22315482,0.00013699,2]
[404435356,1770138637914,-200.77143484,0.00013699,2]
[404435358,1770138637924,-638.54957235,0.00013699,2]
[404435360,1770138637934,-500.0,0.00013699,2]
[404435362,1770138637943,-500.0,0.00013699,2]
[404435364,1770138637952,-221.07597688,0.00013699,2]
[404435366,1770138637962,-381.76872298,0.00013699,2]
[404435368,1770138637971,-500.0,0.00013699,2]
[404435370,1770138637981,-500.0,0.00013699,2]
[404435372,1770138637989,-500.0,0.00013699,2]
[404435374,1770138637999,-500.0,0.00013699,2]
[404435376,1770138638007,-500.0,0.00013699,2]
[404435378,1770138638016,-500.0,0.00013699,2]
[404435380,1770138638025,-500.0,0.00013699,2]
[404435382,1770138638034,-500.0,0.00013699,2]
[404435384,1770138638043,-500.0,0.00013699,2]
[404435386,1770138638054,-500.0,0.00013699,2]
[404435388,1770138638063,-500.0,0.00013699,2]
[404435390,1770138638072,-500.0,0.00013699,2]
[404435392,1770138638082,-500.0,0.00013699,2]
[404435394,1770138638091,-500.0,0.00013699,2]
[404435396,1770138638101,-500.0,0.00013699,2]
[404435398,1770138638111,-500.0,0.00013699,2]
[404435400,1770138638120,-436.12552914,0.00013699,2]
[404435402,1770138638130,-500.0,0.00013699,2]
[404435404,1770138638140,-500.0,0.00013699,2]
[404435406,1770138638150,-500.0,0.00013699,2]
[404435409,1770138638164,-500.0,0.00013699,2]
[404435411,1770138638174,-500.0,0.00013699,2]
[404435413,1770138638183,-500.0,0.00013699,2]
[404435415,1770138638193,-500.0,0.00013699,2]
[404435417,1770138638203,-500.0,0.00013699,2]
[404435419,1770138638213,-500.0,0.00013699,2]
[404435421,1770138638222,-501.72998214,0.00013699,2]
[404435423,1770138638232,-500.0,0.00013699,2]
[404435425,1770138638241,-503.26912144,0.00013699,2]
[404435427,1770138638251,-500.0,0.00013699,2]
[404435429,1770138638261,-500.0,0.00013699,2]
[404435431,1770138638270,-500.0,0.00013699,2]
[404435433,1770138638280,-500.0,0.00013699,2]
[404435435,1770138638289,-500.0,0.00013699,2]
[404435437,1770138638299,-500.62738152,0.00013699,2]
[404435439,1770138638308,-500.0,0.00013699,2]
[404435441,1770138638318,-448.60615022,0.00013699,2]
[404435443,1770138638327,-500.0,0.00013699,2]
[404435445,1770138638338,-500.70746327,0.00013699,2]
[404435447,1770138638347,-500.0,0.00013699,2]
[404435449,1770138638356,-500.0,0.00013699,2]
[404435451,1770138638365,-501.41070703,0.00013699,2]
[404435453,1770138638375,-1331.8085625,0.00013721,2]
[404435455,1770138638383,-216.2929289,0.0001382,2]
[404435468,1770138638494,-500.0,0.0001382,2]
[404435470,1770138638504,-503.57547916,0.0001382,2]
[404435472,1770138638513,-500.0,0.0001382,2]
[404435474,1770138638524,-975.34594094,0.00013821,2]
[404435476,1770138638533,-530.78728917,0.00013821,2]
[404435478,1770138638542,-1000.0,0.00013821,2]
[404435479,1770138638552,-1000.0,0.00013821,2]
[404435480,1770138638562,-767.72394717,0.00013821,2]
[404435481,1770138638571,-1000.0,0.00013821,2]
[404435482,1770138638581,-637.1041831,0.00013821,2]
[404435483,1770138638590,-779.12732021,0.00013821,2]
[404435484,1770138638600,-1000.0,0.00013821,2]
[404435485,1770138638609,-400.40432595,0.00013821,2]
[404435486,1770138638619,-1000.0,0.00013821,2]
[404435487,1770138638628,-1000.0,0.00013821,2]
[404435488,1770138638638,-1000.0,0.00013821,2]
[404435489,1770138638647,-1000.0,0.00013821,2]
[404435490,1770138638657,-1000.0,0.00013821,2]
[404435491,1770138638667,-1000.0,0.00013821,2]
[404435492,1770138638676,-1000.0,0.00013821,2]
[404435493,1770138638686,-1000.0,0.00013821,2]
[404435494,1770138638696,-1000.0,0.00013821,2]
[404435495,1770138638706,-519.30346587,0.00013821,2]
[404435496,1770138638716,-709.54708386,0.00013821,2]
[404435497,1770138638727,-1000.0,0.00013821,2]
[404435498,1770138638736,-500.0,0.00013952,2]
[404435499,1770138638745,-164.15053695,0.00013973,2]
[404435500,1770138638755,-168.10936472,0.00013973,2]
[404435501,1770138638764,-2428.3629531,0.0001421,2]
[404435502,1770138638774,-1043.5709911,0.0001421,2]
[404435504,1770138638783,-500.0,0.0001423,2]
[404435506,1770138638793,-500.0,0.0001423,2]
[404435508,1770138638804,-300.0,0.00014231,2]
[404435510,1770138638814,-300.0,0.00014231,2]
[404435512,1770138638824,-300.0,0.00014231,2]
[404435514,1770138638834,-300.0,0.00014231,2]
[404435516,1770138638844,-300.0,0.00014231,2]
[404435518,1770138638854,-300.0,0.00014231,2]
[404435520,1770138638863,-300.0,0.00014231,2]
[404435522,1770138638873,-300.0,0.00014231,2]
[404435524,1770138638882,-300.0,0.00014231,2]
[404435527,1770138638897,-300.0,0.00014231,2]
[404435529,1770138638906,-300.0,0.00014231,2]
[404435531,1770138638915,-300.0,0.00014231,2]
[404435533,1770138638925,-300.0,0.00014231,2]
[404435535,1770138638935,-300.0,0.00014231,2]
[404435537,1770138638945,-300.0,0.00014231,2]
[404435538,1770138638954,-500.0,0.00014246,2]
[404435541,1770138638965,-500.0,0.00014246,2]
[404435542,1770138638974,-1000.0,0.00014247,2]
[404435544,1770138638984,-445.0193537,0.00014247,2]
[404435547,1770138638996,-582.90551414,0.00014247,2]
[404435549,1770138639005,-180.50448586,0.00014247,2]
[404435559,1770138639099,5000.0,0.00013673,2]
[404435880,1770138644362,-820.88643099,0.00014247,2]
[404435881,1770138644372,-1000.0,0.00014247,2]
[404435882,1770138644381,-1000.0,0.00014247,2]
[404435883,1770138644390,-1000.0,0.00014247,2]
[404435884,1770138644400,-1000.0,0.00014247,2]
[404435885,1770138644410,-1000.0,0.00014247,2]
[404435886,1770138644419,-500.58066668,0.00014247,2]
[404435888,1770138644428,-744.41498166,0.00014247,2]
[404435889,1770138644437,-1000.0,0.00014247,2]
[404435891,1770138644447,-1000.0,0.00014247,2]
[404435892,1770138644456,-829.24588186,0.00014247,2]
[404435893,1770138644466,-102.34536326,0.00014247,2]
[404435894,1770138645252,-513.97774495,0.00014247,2]
[404435895,1770138645262,-1000.0,0.00014247,2]
[404435896,1770138645271,-1000.0,0.00014247,2]
[404435897,1770138645281,-948.05540841,0.00014247,2]
[404435898,1770138645291,-1000.0,0.00014247,2]
[404435899,1770138645300,-1036.69780885,0.00014247,2]
[404435900,1770138645309,-1000.0,0.00014247,2]
[404435901,1770138645319,-1000.0,0.00014247,2]
[404435902,1770138645328,-1000.0,0.00014247,2]
[404435903,1770138645338,-1000.0,0.00014247,2]
[404435904,1770138645347,-448.08953558,0.00014247,2]
[404435905,1770138645357,-1000.0,0.00014247,2]
[404435906,1770138645366,-502.52398515,0.00014247,2]
[404435907,1770138645375,-1000.0,0.00014247,2]
[404435908,1770138645384,-1000.0,0.00014247,2]
[404435909,1770138645393,-502.76276556,0.00014247,2]
[404435910,1770138645402,-510.85316319,0.00014247,2]
[404435911,1770138645412,-562.63420728,0.00014247,2]
[404435912,1770138645421,-1000.0,0.00014247,2]
[404435913,1770138645430,-529.78488538,0.00014247,2]
[404435914,1770138645440,-1001.07051364,0.00014247,2]
[404435915,1770138645449,-500.77278858,0.00014247,2]
[404435916,1770138645458,-1000.0,0.00014247,2]
[404435917,1770138645468,-201.148,0.00014247,2]
[404435918,1770138645477,-357.43116771,0.00014305,2]
[404435919,1770138645487,-408.49276309,0.00014305,2]
[404435922,1770138645576,-356.75578341,0.00014305,2]
[404435923,1770138645586,-500.0,0.00014368,2]
[404435924,1770138645595,-500.0,0.00014368,2]
[404435925,1770138645605,-1528.68511647,0.00014368,2]
[404435926,1770138645614,-1500.0,0.00014368,2]
[404435927,1770138645623,-1500.0,0.00014368,2]
[404435928,1770138645632,-509.81532837,0.00014368,2]
[404435929,1770138645641,-1379.88429686,0.00014368,2]
[404435934,1770138646006,-120.11570314,0.00014368,2]
[404435935,1770138646016,-1500.0,0.00014368,2]
[404435936,1770138646027,-1105.10686925,0.00014368,2]
[404435937,1770138646037,-1500.0,0.00014368,2]
[404435938,1770138646048,-1500.0,0.00014368,2]
[404435939,1770138646057,-1500.0,0.00014368,2]
[404435940,1770138646067,-1500.0,0.00014368,2]
[404435941,1770138646077,-526.91838931,0.00014368,2]
[404435942,1770138646086,-1500.0,0.00014368,2]
[404435943,1770138646095,-1500.0,0.00014368,2]
[404435944,1770138646105,-1331.8085625,0.00014375,2]
[404435945,1770138646114,-500.0,0.00014383,2]
[404435946,1770138646124,-500.0,0.00014383,2]
[404435947,1770138646133,-1219.9614989,0.00014384,2]
[404435948,1770138646142,-35974.9660089,0.00014384,2]
[404435949,1770138646151,-658.11822279,0.00014456,7]
[404435950,1770138646162,-669.96343807,0.00014456,7]
[404435951,1770138646171,-605.727145,0.00014503,2]
[404435952,1770138646182,-600.0,0.00014515,2]
[404435953,1770138646191,-688.92,0.00014695,2]
[404435954,1770138646201,-1183.66927089,0.00014795,2]
[404435955,1770138646210,-1441.20250112,0.00014795,2]
[404435956,1770138646219,-502.1022634,0.00014795,2]
[404435957,1770138646230,-501.43037161,0.00014795,2]